[Event "Late-Titled-Tuesday-Blitz-September-12-2023"]
[Site "Chess.com"]
[Date "2023.09.12"]
[Round "5"]
[White "Aleksandar-Topalov"]
[Black "chessisveryfun1264"]
[Result "0-1"]
[WhiteElo "2359"]
[BlackElo "2540"]
[TimeControl "180+1"]
[EndTime "14:52:28 PDT"]
[Termination "chessisveryfun1264 won by resignation"]

1. b3 {[%clk 0:03:00.9]} 1... e5 {[%clk 0:02:36.1]} 2. Bb2 {[%clk 0:02:59.4]}
2... Nc6 {[%clk 0:02:29.3]} 3. c4 {[%clk 0:02:58.9]} 3... g6 {[%clk 0:02:28.3]}
4. Nc3 {[%clk 0:02:57.9]} 4... Bg7 {[%clk 0:02:28.8]} 5. g3 {[%clk 0:02:58.1]}
5... Nge7 {[%clk 0:02:28.8]} 6. Bg2 {[%clk 0:02:58.4]} 6... d6 {[%clk
0:02:29.5]} 7. a3 {[%clk 0:02:58.4]} 7... O-O {[%clk 0:02:30.1]} 8. e3 {[%clk
0:02:58.7]} 8... Be6 {[%clk 0:02:30.7]} 9. Nd5 {[%clk 0:02:58.1]} 9... Qd7
{[%clk 0:02:30.1]} 10. Ne2 {[%clk 0:02:57.4]} 10... f5 {[%clk 0:02:29.3]} 11.
O-O {[%clk 0:02:56]} 11... Nd8 {[%clk 0:02:29.3]} 12. d4 {[%clk 0:02:50.3]}
12... e4 {[%clk 0:02:29.1]} 13. Nxe7+ {[%clk 0:02:42.2]} 13... Qxe7 {[%clk
0:02:30]} 14. Qc2 {[%clk 0:02:39.5]} 14... c6 {[%clk 0:02:27.8]} 15. Nf4 {[%clk
0:02:14.1]} 15... Bf7 {[%clk 0:02:27.5]} 16. d5 {[%clk 0:02:07.1]} 16... g5
{[%clk 0:02:21.1]} 17. Bxg7 {[%clk 0:02:05.2]} 17... Kxg7 {[%clk 0:02:22]} 18.
Ne2 {[%clk 0:02:01.4]} 18... cxd5 {[%clk 0:02:21.5]} 19. cxd5 {[%clk 0:02:01.5]}
19... Bxd5 {[%clk 0:02:21.9]} 20. Rfd1 {[%clk 0:01:57.5]} 20... Bf7 {[%clk
0:02:21.5]} 21. Nd4 {[%clk 0:01:52]} 21... Be6 {[%clk 0:02:10.4]} 22. Rac1
{[%clk 0:01:45.3]} 22... Kg6 {[%clk 0:02:02.4]} 23. Nb5 {[%clk 0:01:30.2]} 23...
Rc8 {[%clk 0:01:54.2]} 24. Qb2 {[%clk 0:01:25.3]} 24... Rxc1 {[%clk 0:01:52.8]}
25. Qxc1 {[%clk 0:01:10.3]} 25... Nf7 {[%clk 0:01:33.6]} 26. Qb2 {[%clk
0:00:54.9]} 26... a6 {[%clk 0:01:27.6]} 27. Nd4 {[%clk 0:00:54.9]} 27... Ne5
{[%clk 0:01:25.3]} 28. Bf1 {[%clk 0:00:51.1]} 28... Rc8 {[%clk 0:01:16]} 29. Rc1
{[%clk 0:00:48]} 29... Rxc1 {[%clk 0:01:05.8]} 30. Qxc1 {[%clk 0:00:47.3]} 30...
Qd7 {[%clk 0:01:02.7]} 31. Be2 {[%clk 0:00:31.8]} 31... Qc8 {[%clk 0:01:00.1]}
32. Qb2 {[%clk 0:00:29.3]} 32... b5 {[%clk 0:00:54.3]} 33. b4 {[%clk 0:00:19.1]}
33... Bc4 {[%clk 0:00:53.4]} 34. Bxc4 {[%clk 0:00:12.8]} 34... Qxc4 {[%clk
0:00:54.3]} 35. Qd2 {[%clk 0:00:09.4]} 35... Qxd4 {[%clk 0:00:51.8]} 36. Qxd4
{[%clk 0:00:08.3]} 36... Nf3+ {[%clk 0:00:52.4]} 37. Kf1 {[%clk 0:00:07.6]}
37... Nxd4 {[%clk 0:00:53.3]} 38. exd4 {[%clk 0:00:07.9]} 38... Kf6 {[%clk
0:00:53.4]} 0-1

[Event "Late-Titled-Tuesday-Blitz-September-12-2023"]
[Site "Chess.com"]
[Date "2023.09.12"]
[Round "5"]
[White "dropstoneDP"]
[Black "baki83"]
[Result "1-0"]
[WhiteElo "3029"]
[BlackElo "2836"]
[TimeControl "180+1"]
[EndTime "14:52:29 PDT"]
[Termination "dropstoneDP won by resignation"]

1. e4 {[%clk 0:03:00.9]} 1... c5 {[%clk 0:03:00.3]} 2. Nf3 {[%clk 0:03:00.8]}
2... d6 {[%clk 0:03:01]} 3. d4 {[%clk 0:03:01.1]} 3... cxd4 {[%clk 0:03:01.8]}
4. Nxd4 {[%clk 0:03:02]} 4... Nf6 {[%clk 0:03:02.2]} 5. Nc3 {[%clk 0:03:02.5]}
5... Nc6 {[%clk 0:03:02.9]} 6. Bg5 {[%clk 0:03:03]} 6... e6 {[%clk 0:03:02.9]}
7. Qd2 {[%clk 0:03:03.6]} 7... a6 {[%clk 0:03:02.7]} 8. Nxc6 {[%clk 0:03:04.2]}
8... bxc6 {[%clk 0:03:02.6]} 9. O-O-O {[%clk 0:03:05.1]} 9... Bb7 {[%clk
0:02:57.3]} 10. Bc4 {[%clk 0:03:03]} 10... Qc7 {[%clk 0:02:56.3]} 11. Qe2 {[%clk
0:02:57.9]} 11... Nd7 {[%clk 0:02:51.6]} 12. f4 {[%clk 0:02:55.9]} 12... h6
{[%clk 0:02:35.1]} 13. Bh4 {[%clk 0:02:52.1]} 13... Nb6 {[%clk 0:02:19.6]} 14.
Bb3 {[%clk 0:02:50.6]} 14... a5 {[%clk 0:02:17.7]} 15. a4 {[%clk 0:02:41.5]}
15... Ba6 {[%clk 0:02:09]} 16. Qh5 {[%clk 0:02:38.9]} 16... Rb8 {[%clk 0:01:44]}
17. Bxe6 {[%clk 0:02:20.9]} 17... g6 {[%clk 0:01:44.2]} 18. Qg4 {[%clk
0:01:39.5]} 18... Bg7 {[%clk 0:01:42.2]} 19. Bb3 {[%clk 0:01:20.7]} 19... Nc4
{[%clk 0:01:37.3]} 20. e5 {[%clk 0:00:46.7]} 20... O-O {[%clk 0:01:28]} 21. exd6
{[%clk 0:00:31.6]} 21... Nxd6 {[%clk 0:01:18.3]} 22. Qxg6 {[%clk 0:00:31.4]}
22... Nc4 {[%clk 0:01:04.9]} 23. Qg3 {[%clk 0:00:30.2]} 23... Kh8 {[%clk
0:00:53.2]} 24. f5 {[%clk 0:00:30.4]} 24... Qxg3 {[%clk 0:00:17.2]} 25. hxg3
{[%clk 0:00:31.3]} 25... Be5 {[%clk 0:00:16.9]} 26. Bg5 {[%clk 0:00:30.1]} 26...
Rfe8 {[%clk 0:00:13]} 27. Rxh6+ {[%clk 0:00:29.1]} 27... Kg8 {[%clk 0:00:13.1]}
28. f6 {[%clk 0:00:29.3]} 1-0

[Event "Late-Titled-Tuesday-Blitz-September-12-2023"]
[Site "Chess.com"]
[Date "2023.09.12"]
[Round "5"]
[White "RCone"]
[Black "Bodhanas"]
[Result "0-1"]
[WhiteElo "2319"]
[BlackElo "1872"]
[TimeControl "180+1"]
[EndTime "14:52:30 PDT"]
[Termination "Bodhanas won by checkmate"]

1. e4 {[%clk 0:02:59]} 1... e6 {[%clk 0:02:56.3]} 2. d4 {[%clk 0:02:54.5]} 2...
d5 {[%clk 0:02:55.7]} 3. e5 {[%clk 0:02:54.2]} 3... c5 {[%clk 0:02:54.5]} 4. c3
{[%clk 0:02:54.6]} 4... Nc6 {[%clk 0:02:53.9]} 5. Nf3 {[%clk 0:02:53.5]} 5...
Bd7 {[%clk 0:02:42.3]} 6. dxc5 {[%clk 0:02:51.5]} 6... Bxc5 {[%clk 0:02:40.7]}
7. b4 {[%clk 0:02:51.4]} 7... Bb6 {[%clk 0:02:34.6]} 8. b5 {[%clk 0:02:50.9]}
8... Na5 {[%clk 0:02:25.5]} 9. a4 {[%clk 0:02:49.6]} 9... Ne7 {[%clk 0:02:21.8]}
10. Bd3 {[%clk 0:02:45.4]} 10... h6 {[%clk 0:02:17.2]} 11. O-O {[%clk
0:02:44.5]} 11... O-O {[%clk 0:02:11.6]} 12. Nd4 {[%clk 0:02:44.1]} 12... Bxd4
{[%clk 0:02:07]} 13. cxd4 {[%clk 0:02:43.9]} 13... Rc8 {[%clk 0:02:04.3]} 14.
Qg4 {[%clk 0:02:35.2]} 14... Nf5 {[%clk 0:01:58.4]} 15. Ba3 {[%clk 0:02:13.8]}
15... Re8 {[%clk 0:01:53.2]} 16. Nd2 {[%clk 0:02:09.3]} 16... Qg5 {[%clk
0:01:36]} 17. Bxf5 {[%clk 0:02:01.8]} 17... exf5 {[%clk 0:01:19.7]} 18. Qxg5
{[%clk 0:02:01.5]} 18... hxg5 {[%clk 0:01:19.3]} 19. Bb4 {[%clk 0:01:56.7]}
19... Nc4 {[%clk 0:01:18.5]} 20. Nb3 {[%clk 0:01:46.7]} 20... b6 {[%clk
0:01:17.7]} 21. Rfc1 {[%clk 0:01:39.9]} 21... Nb2 {[%clk 0:01:13.6]} 22. Bd6
{[%clk 0:01:23.9]} 22... Nd3 {[%clk 0:01:07.8]} 23. Rd1 {[%clk 0:01:20.6]} 23...
Nf4 {[%clk 0:01:05.5]} 24. g3 {[%clk 0:01:19]} 24... Ne2+ {[%clk 0:01:05]} 25.
Kf1 {[%clk 0:01:18.8]} 25... Nc3 {[%clk 0:01:05]} 26. Rdc1 {[%clk 0:01:18.4]}
26... g4 {[%clk 0:00:53.1]} 27. Ke1 {[%clk 0:01:13.2]} 27... Ne4 {[%clk
0:00:52]} 28. Ke2 {[%clk 0:01:12.2]} 28... Nxd6 {[%clk 0:00:50.9]} 29. Kd3
{[%clk 0:01:09]} 29... Nc4 {[%clk 0:00:50.3]} 30. Ra2 {[%clk 0:00:58.3]} 30...
f6 {[%clk 0:00:49.2]} 31. exf6 {[%clk 0:00:57.7]} 31... gxf6 {[%clk 0:00:49.2]}
32. h3 {[%clk 0:00:56.2]} 32... gxh3 {[%clk 0:00:46.1]} 33. Rh1 {[%clk
0:00:56.8]} 33... f4 {[%clk 0:00:45.5]} 34. gxf4 {[%clk 0:00:57.1]} 34... Bf5+
{[%clk 0:00:45.1]} 35. Kc3 {[%clk 0:00:57.5]} 35... Ne3+ {[%clk 0:00:41.8]} 36.
Kb4 {[%clk 0:00:57.3]} 36... Rc4+ {[%clk 0:00:40.6]} 37. Ka3 {[%clk 0:00:57.5]}
37... Nc2+ {[%clk 0:00:40.1]} 38. Kb2 {[%clk 0:00:56.8]} 38... Nxd4 {[%clk
0:00:40.3]} 39. Rg1+ {[%clk 0:00:55.3]} 39... Kf7 {[%clk 0:00:39]} 40. Rg3
{[%clk 0:00:56.2]} 40... Rc2+ {[%clk 0:00:37.6]} 41. Ka3 {[%clk 0:00:55.9]}
41... Rxa2+ {[%clk 0:00:37.5]} 42. Kxa2 {[%clk 0:00:56.8]} 42... Nxb3 {[%clk
0:00:36.7]} 43. Kxb3 {[%clk 0:00:56.8]} 43... Re2 {[%clk 0:00:36.2]} 44. Rc3
{[%clk 0:00:53.4]} 44... h2 {[%clk 0:00:33.3]} 45. Rc7+ {[%clk 0:00:54.3]} 45...
Ke6 {[%clk 0:00:33]} 46. Rxa7 {[%clk 0:00:55]} 46... h1=Q {[%clk 0:00:31.3]} 47.
Rb7 {[%clk 0:00:55.9]} 47... Qb1+ {[%clk 0:00:30.3]} 48. Kc3 {[%clk 0:00:55.1]}
48... Rc2+ {[%clk 0:00:29.8]} 49. Kd4 {[%clk 0:00:55]} 49... Qb4+ {[%clk
0:00:28.8]} 50. Ke3 {[%clk 0:00:55.1]} 50... Qe4# {[%clk 0:00:28.8]} 0-1

[Event "Late-Titled-Tuesday-Blitz-September-12-2023"]
[Site "Chess.com"]
[Date "2023.09.12"]
[Round "5"]
[White "Macron20hTF1"]
[Black "tptagain"]
[Result "0-1"]
[WhiteElo "2627"]
[BlackElo "2938"]
[TimeControl "180+1"]
[EndTime "14:52:33 PDT"]
[Termination "tptagain won by resignation"]

1. Nf3 {[%clk 0:03:00.9]} 1... d5 {[%clk 0:02:57.8]} 2. e3 {[%clk 0:03:00.9]}
2... e6 {[%clk 0:02:55.9]} 3. c4 {[%clk 0:02:56.9]} 3... Nf6 {[%clk 0:02:55.5]}
4. Nc3 {[%clk 0:02:57.6]} 4... Nbd7 {[%clk 0:02:52.7]} 5. b3 {[%clk 0:02:56.7]}
5... b6 {[%clk 0:02:50.6]} 6. Bb2 {[%clk 0:02:46.9]} 6... Bb7 {[%clk 0:02:49.8]}
7. cxd5 {[%clk 0:02:45.5]} 7... exd5 {[%clk 0:02:49.7]} 8. Ne2 {[%clk
0:02:41.4]} 8... Bd6 {[%clk 0:02:46.4]} 9. g3 {[%clk 0:02:41.9]} 9... O-O {[%clk
0:02:41.3]} 10. Bg2 {[%clk 0:02:42.3]} 10... c5 {[%clk 0:02:40.2]} 11. O-O
{[%clk 0:02:37.2]} 11... Re8 {[%clk 0:02:33.9]} 12. d4 {[%clk 0:02:32.7]} 12...
c4 {[%clk 0:02:33.6]} 13. bxc4 {[%clk 0:02:20.9]} 13... dxc4 {[%clk 0:02:34.5]}
14. Qc2 {[%clk 0:02:21.4]} 14... b5 {[%clk 0:02:32.5]} 15. a4 {[%clk 0:02:21.6]}
15... Be4 {[%clk 0:02:29.6]} 16. Qc1 {[%clk 0:02:19.8]} 16... Bd3 {[%clk
0:02:18.1]} 17. Re1 {[%clk 0:02:18.4]} 17... b4 {[%clk 0:02:17.2]} 18. Ne5
{[%clk 0:01:54.9]} 18... Rc8 {[%clk 0:01:36.2]} 19. Nf4 {[%clk 0:01:18.3]} 19...
Nxe5 {[%clk 0:01:30.5]} 20. dxe5 {[%clk 0:01:18.1]} 20... Bxe5 {[%clk
0:01:30.3]} 21. Bxe5 {[%clk 0:01:18.4]} 21... Rxe5 {[%clk 0:01:30.4]} 22. Qb2
{[%clk 0:01:13]} 22... Qe7 {[%clk 0:01:20.5]} 23. Nxd3 {[%clk 0:01:01.7]} 23...
cxd3 {[%clk 0:01:21.4]} 24. Red1 {[%clk 0:00:59.8]} 24... Rc3 {[%clk 0:00:53.5]}
25. a5 {[%clk 0:00:50.5]} 25... h5 {[%clk 0:00:50.8]} 26. Ra4 {[%clk 0:00:50]}
26... Rb5 {[%clk 0:00:45.3]} 27. Bf1 {[%clk 0:00:47.8]} 27... Qe4 {[%clk
0:00:39]} 28. Rb1 {[%clk 0:00:12.4]} 28... Rc2 {[%clk 0:00:30.7]} 29. Qb3 {[%clk
0:00:09.1]} 29... Qf3 {[%clk 0:00:29.4]} 0-1

[Event "Late-Titled-Tuesday-Blitz-September-12-2023"]
[Site "Chess.com"]
[Date "2023.09.12"]
[Round "5"]
[White "Djager97"]
[Black "diamonds13"]
[Result "1-0"]
[WhiteElo "2536"]
[BlackElo "2358"]
[TimeControl "180+1"]
[EndTime "14:52:40 PDT"]
[Termination "Djager97 won by resignation"]

1. e4 {[%clk 0:03:00.9]} 1... c5 {[%clk 0:02:59.1]} 2. Nf3 {[%clk 0:03:01.4]}
2... Nc6 {[%clk 0:02:59.4]} 3. Bb5 {[%clk 0:03:00.8]} 3... Qc7 {[%clk
0:02:58.5]} 4. O-O {[%clk 0:02:58]} 4... Nf6 {[%clk 0:02:56.5]} 5. Re1 {[%clk
0:02:54.1]} 5... a6 {[%clk 0:02:55.5]} 6. Bf1 {[%clk 0:02:53.6]} 6... e5 {[%clk
0:02:54.6]} 7. c3 {[%clk 0:02:49.2]} 7... d6 {[%clk 0:02:49.9]} 8. h3 {[%clk
0:02:46.6]} 8... h6 {[%clk 0:02:49.3]} 9. d4 {[%clk 0:02:46.2]} 9... g5 {[%clk
0:02:45.8]} 10. dxc5 {[%clk 0:02:42.1]} 10... dxc5 {[%clk 0:02:45.5]} 11. Nbd2
{[%clk 0:02:36.5]} 11... g4 {[%clk 0:02:42.2]} 12. hxg4 {[%clk 0:02:37.4]} 12...
Bxg4 {[%clk 0:02:42.1]} 13. Nc4 {[%clk 0:02:26.1]} 13... Be7 {[%clk 0:02:37.1]}
14. Ne3 {[%clk 0:02:25.7]} 14... h5 {[%clk 0:02:35.4]} 15. Nd5 {[%clk
0:02:22.1]} 15... Nxd5 {[%clk 0:02:35.2]} 16. exd5 {[%clk 0:02:23]} 16... O-O-O
{[%clk 0:02:34.4]} 17. c4 {[%clk 0:01:27.7]} 17... Nd4 {[%clk 0:02:33.2]} 18.
Be2 {[%clk 0:01:27.5]} 18... Nxe2+ {[%clk 0:02:21.4]} 19. Qxe2 {[%clk
0:01:28.4]} 19... Bd6 {[%clk 0:02:18.8]} 20. b4 {[%clk 0:01:06.1]} 20... f5
{[%clk 0:02:12.4]} 21. bxc5 {[%clk 0:01:01.1]} 21... Qxc5 {[%clk 0:02:11.2]} 22.
Be3 {[%clk 0:00:57.3]} 22... Qc7 {[%clk 0:02:01]} 23. c5 {[%clk 0:00:55.5]}
23... e4 {[%clk 0:01:59.2]} 24. cxd6 {[%clk 0:00:53.1]} 24... Qxd6 {[%clk
0:01:59.4]} 25. Rec1+ {[%clk 0:00:39]} 25... Kb8 {[%clk 0:01:52.1]} 26. Qd2
{[%clk 0:00:38.8]} 26... Qxd5 {[%clk 0:01:34.7]} 27. Nd4 {[%clk 0:00:27.2]}
27... Ka8 {[%clk 0:01:28.5]} 28. Rab1 {[%clk 0:00:25.5]} 28... f4 {[%clk
0:01:26.2]} 29. Bxf4 {[%clk 0:00:12.2]} 29... Qxd4 {[%clk 0:01:26.2]} 30. Qxd4
{[%clk 0:00:13]} 30... Rxd4 {[%clk 0:01:26.4]} 31. Be5 {[%clk 0:00:13.7]} 31...
Rhd8 {[%clk 0:01:23.6]} 32. Bxd4 {[%clk 0:00:14]} 32... Rxd4 {[%clk 0:01:24.3]}
33. Rc7 {[%clk 0:00:13.5]} 33... h4 {[%clk 0:01:17]} 34. Rbxb7 {[%clk
0:00:11.2]} 34... h3 {[%clk 0:01:17.3]} 35. gxh3 {[%clk 0:00:11]} 35... Bxh3
{[%clk 0:01:13.2]} 36. Ra7+ {[%clk 0:00:11.1]} 36... Kb8 {[%clk 0:01:12.9]} 37.
Rcb7+ {[%clk 0:00:12]} 37... Kc8 {[%clk 0:01:12.4]} 38. Rh7 {[%clk 0:00:12.6]}
38... Bd7 {[%clk 0:01:08.3]} 39. Kf1 {[%clk 0:00:09.1]} 39... Rd1+ {[%clk
0:01:05]} 40. Ke2 {[%clk 0:00:09.1]} 40... Rd5 {[%clk 0:01:00.9]} 41. Rhxd7
{[%clk 0:00:09.3]} 41... Rxd7 {[%clk 0:01:00.7]} 42. Rxd7 {[%clk 0:00:10.2]}
42... Kxd7 {[%clk 0:01:01.1]} 43. Ke3 {[%clk 0:00:10.9]} 43... Kd6 {[%clk
0:01:00.7]} 44. Kxe4 {[%clk 0:00:10.4]} 44... Kc5 {[%clk 0:01:01.4]} 45. f4
{[%clk 0:00:10.2]} 45... Kb4 {[%clk 0:01:02.2]} 46. f5 {[%clk 0:00:10.5]} 46...
Ka3 {[%clk 0:01:02.9]} 47. f6 {[%clk 0:00:11.4]} 47... Kxa2 {[%clk 0:01:03.6]}
48. f7 {[%clk 0:00:12.3]} 48... a5 {[%clk 0:01:04.3]} 49. f8=Q {[%clk
0:00:13.2]} 49... a4 {[%clk 0:01:05]} 50. Qb4 {[%clk 0:00:13.3]} 50... a3 {[%clk
0:01:05.2]} 51. Kd3 {[%clk 0:00:13.6]} 51... Ka1 {[%clk 0:01:03.9]} 52. Qxa3+
{[%clk 0:00:13.6]} 1-0

[Event "Late-Titled-Tuesday-Blitz-September-12-2023"]
[Site "Chess.com"]
[Date "2023.09.12"]
[Round "5"]
[White "Zampronha1971"]
[Black "Vadim_Biliy"]
[Result "1-0"]
[WhiteElo "2308"]
[BlackElo "2205"]
[TimeControl "180+1"]
[EndTime "14:52:51 PDT"]
[Termination "Zampronha1971 won on time"]

1. e4 {[%clk 0:03:00.9]} 1... d6 {[%clk 0:02:59.5]} 2. d4 {[%clk 0:02:59.6]}
2... Nf6 {[%clk 0:02:59.3]} 3. Nc3 {[%clk 0:02:59.9]} 3... g6 {[%clk 0:02:59.4]}
4. Bg5 {[%clk 0:02:57.3]} 4... h6 {[%clk 0:02:57.8]} 5. Bh4 {[%clk 0:02:55.6]}
5... c6 {[%clk 0:02:54.1]} 6. f4 {[%clk 0:02:54.7]} 6... Bg7 {[%clk 0:02:52.9]}
7. e5 {[%clk 0:02:54.8]} 7... Nd5 {[%clk 0:02:51.5]} 8. Nxd5 {[%clk 0:02:54.1]}
8... cxd5 {[%clk 0:02:51.4]} 9. c3 {[%clk 0:02:52.7]} 9... O-O {[%clk
0:02:38.4]} 10. Nf3 {[%clk 0:02:48.8]} 10... f6 {[%clk 0:02:33.5]} 11. Bd3
{[%clk 0:02:44.8]} 11... f5 {[%clk 0:02:17.1]} 12. O-O {[%clk 0:02:40.8]} 12...
Nc6 {[%clk 0:02:11.8]} 13. Re1 {[%clk 0:02:39.8]} 13... Qc7 {[%clk 0:02:05.1]}
14. Qb3 {[%clk 0:02:33]} 14... e6 {[%clk 0:02:02.7]} 15. Qa3 {[%clk 0:02:15.3]}
15... dxe5 {[%clk 0:01:43.2]} 16. Nxe5 {[%clk 0:02:16.2]} 16... Nxe5 {[%clk
0:01:38.2]} 17. fxe5 {[%clk 0:02:17.1]} 17... Rf7 {[%clk 0:01:35.3]} 18. Bf2
{[%clk 0:02:13.8]} 18... Bf8 {[%clk 0:01:34.2]} 19. Qb3 {[%clk 0:02:12.9]} 19...
Bd7 {[%clk 0:01:22.2]} 20. Qc2 {[%clk 0:02:12]} 20... b5 {[%clk 0:01:19.2]} 21.
a3 {[%clk 0:02:10.5]} 21... Bc6 {[%clk 0:01:13.9]} 22. Qe2 {[%clk 0:02:10.8]}
22... Re8 {[%clk 0:01:04.1]} 23. Kh1 {[%clk 0:02:11]} 23... Rh7 {[%clk
0:01:01.5]} 24. g4 {[%clk 0:02:10.9]} 24... Ree7 {[%clk 0:00:54.2]} 25. Rg1
{[%clk 0:02:10]} 25... Reg7 {[%clk 0:00:53.6]} 26. Rg2 {[%clk 0:02:09.2]} 26...
Qf7 {[%clk 0:00:50.6]} 27. Rag1 {[%clk 0:02:08.8]} 27... Be7 {[%clk 0:00:46.5]}
28. gxf5 {[%clk 0:01:58.4]} 28... gxf5 {[%clk 0:00:44.4]} 29. Rxg7+ {[%clk
0:01:52.4]} 29... Rxg7 {[%clk 0:00:43.8]} 30. Rxg7+ {[%clk 0:01:53.3]} 30...
Qxg7 {[%clk 0:00:43.1]} 31. Bxb5 {[%clk 0:01:52]} 31... Bxb5 {[%clk 0:00:32]}
32. Qxb5 {[%clk 0:01:52.9]} 32... Kh7 {[%clk 0:00:31]} 33. Qe2 {[%clk
0:01:49.7]} 33... Qg5 {[%clk 0:00:29.9]} 34. Be3 {[%clk 0:01:47.1]} 34... f4
{[%clk 0:00:29.6]} 35. Bd2 {[%clk 0:01:41.9]} 35... Qf5 {[%clk 0:00:27]} 36. Kg2
{[%clk 0:01:40.2]} 36... Bg5 {[%clk 0:00:25.1]} 37. Be1 {[%clk 0:01:31.3]} 37...
Qb1 {[%clk 0:00:20.4]} 38. Bf2 {[%clk 0:01:29.7]} 38... Kg7 {[%clk 0:00:17.1]}
39. h4 {[%clk 0:01:29.2]} 39... Be7 {[%clk 0:00:15.4]} 40. Qg4+ {[%clk
0:01:28.7]} 40... Qg6 {[%clk 0:00:13.4]} 41. Kf3 {[%clk 0:01:27]} 41... h5
{[%clk 0:00:12.4]} 42. Qxg6+ {[%clk 0:01:27.1]} 42... Kxg6 {[%clk 0:00:12.8]}
43. Kxf4 {[%clk 0:01:26.5]} 43... a6 {[%clk 0:00:12]} 44. b4 {[%clk 0:01:16.3]}
44... Bd8 {[%clk 0:00:11.4]} 45. a4 {[%clk 0:01:14.9]} 45... Be7 {[%clk
0:00:11.6]} 46. b5 {[%clk 0:01:09.8]} 46... axb5 {[%clk 0:00:10.8]} 47. axb5
{[%clk 0:01:10.7]} 47... Bd8 {[%clk 0:00:10.8]} 48. Be3 {[%clk 0:01:09.8]} 48...
Ba5 {[%clk 0:00:10.2]} 49. Bd2 {[%clk 0:01:10.1]} 49... Kh6 {[%clk 0:00:06.7]}
50. Ke3 {[%clk 0:01:07.2]} 50... Kg6 {[%clk 0:00:06.4]} 51. c4 {[%clk
0:01:06.1]} 51... Bd8 {[%clk 0:00:02.9]} 52. c5 {[%clk 0:01:03.2]} 1-0

[Event "Late-Titled-Tuesday-Blitz-September-12-2023"]
[Site "Chess.com"]
[Date "2023.09.12"]
[Round "5"]
[White "The_Princess_Moon"]
[Black "Roedor"]
[Result "0-1"]
[WhiteElo "2264"]
[BlackElo "2404"]
[TimeControl "180+1"]
[EndTime "14:52:52 PDT"]
[Termination "Roedor won by resignation"]

1. e4 {[%clk 0:03:00.9]} 1... e5 {[%clk 0:02:57.7]} 2. Nf3 {[%clk 0:02:56.9]}
2... Nc6 {[%clk 0:02:57.8]} 3. Nc3 {[%clk 0:02:53.8]} 3... Nf6 {[%clk
0:02:56.6]} 4. Bb5 {[%clk 0:02:52.1]} 4... Nd4 {[%clk 0:02:55.9]} 5. Bc4 {[%clk
0:02:51.3]} 5... Bc5 {[%clk 0:02:53.6]} 6. d3 {[%clk 0:02:48.1]} 6... O-O {[%clk
0:02:50.5]} 7. h3 {[%clk 0:02:47.4]} 7... c6 {[%clk 0:02:38.3]} 8. Nxd4 {[%clk
0:02:39.6]} 8... Bxd4 {[%clk 0:02:36.5]} 9. O-O {[%clk 0:02:36.3]} 9... d5
{[%clk 0:02:34.9]} 10. exd5 {[%clk 0:02:34.5]} 10... cxd5 {[%clk 0:02:34.3]} 11.
Bb3 {[%clk 0:02:30.4]} 11... h6 {[%clk 0:02:34.2]} 12. Ne2 {[%clk 0:02:28.5]}
12... Bb6 {[%clk 0:02:32.1]} 13. Be3 {[%clk 0:02:17.6]} 13... Be6 {[%clk
0:02:26.8]} 14. d4 {[%clk 0:02:10.7]} 14... Nd7 {[%clk 0:01:59.1]} 15. Qd2
{[%clk 0:01:58.1]} 15... Qh4 {[%clk 0:01:19.6]} 16. dxe5 {[%clk 0:01:48.4]}
16... Nxe5 {[%clk 0:01:18]} 17. Bxb6 {[%clk 0:01:44.1]} 17... axb6 {[%clk
0:01:16.6]} 18. Qf4 {[%clk 0:01:42.4]} 18... Qg5 {[%clk 0:01:07.8]} 19. Qxg5
{[%clk 0:01:40.3]} 19... hxg5 {[%clk 0:01:08.7]} 20. Rad1 {[%clk 0:01:36.9]}
20... Nc4 {[%clk 0:01:00.6]} 21. Bxc4 {[%clk 0:01:34.9]} 21... dxc4 {[%clk
0:01:01.5]} 22. a3 {[%clk 0:01:33.7]} 22... Bf5 {[%clk 0:00:56.1]} 23. Rd2
{[%clk 0:01:27.4]} 23... Rfd8 {[%clk 0:00:53]} 24. Rfd1 {[%clk 0:01:26.4]} 24...
Rxd2 {[%clk 0:00:52.3]} 25. Rxd2 {[%clk 0:01:27.3]} 25... f6 {[%clk 0:00:50.3]}
26. Nd4 {[%clk 0:01:17.9]} 26... Be4 {[%clk 0:00:36.6]} 27. f3 {[%clk
0:01:15.1]} 27... Bc6 {[%clk 0:00:35]} 28. Kf2 {[%clk 0:01:08.9]} 28... c3
{[%clk 0:00:33.2]} 29. bxc3 {[%clk 0:01:03.4]} 29... Rxa3 {[%clk 0:00:32.4]} 30.
Rd3 {[%clk 0:00:55.1]} 30... Kf7 {[%clk 0:00:20.5]} 31. Ke3 {[%clk 0:00:54.6]}
31... g6 {[%clk 0:00:18.8]} 32. g3 {[%clk 0:00:54]} 32... Ke7 {[%clk 0:00:18.7]}
33. Nb3 {[%clk 0:00:50.8]} 33... Ra4 {[%clk 0:00:15.8]} 34. Rd4 {[%clk
0:00:47.9]} 34... Ra2 {[%clk 0:00:15.4]} 35. Rd2 {[%clk 0:00:45.2]} 35... Ba4
{[%clk 0:00:14.7]} 36. Kd4 {[%clk 0:00:38.7]} 36... Bxb3 {[%clk 0:00:13.3]} 37.
Re2+ {[%clk 0:00:37.9]} 37... Be6 {[%clk 0:00:13.4]} 38. h4 {[%clk 0:00:37.1]}
38... Ra4+ {[%clk 0:00:13.2]} 39. Ke3 {[%clk 0:00:33.9]} 39... gxh4 {[%clk
0:00:13.4]} 40. g4 {[%clk 0:00:33.5]} 40... g5 {[%clk 0:00:12.9]} 41. Kf2 {[%clk
0:00:33]} 41... Rc4 {[%clk 0:00:12.9]} 42. Rd2 {[%clk 0:00:33.5]} 42... Rxc3
{[%clk 0:00:12.6]} 0-1